[Event "23rd Hoogeveen Open 2019"]
[Site "Hoogeveen"]
[Date "2019.10.25"]
[Round "8.15"]
[White "Grooten, Herman"]
[Black "Dev, Shah"]
[Result "1/2-1/2"]
[ECO "D10"]
[WhiteElo "2274"]
[BlackElo "2025"]
[Annotator "NA"]
[PlyCount "88"]
[EventDate "2019.10.19"]
[EventType "swiss"]
[EventCountry "NED"]
[SourceTitle "playchess.com"]
[Source "ChessBase"]
[SourceQuality "1"]
[TimeControl "40/5400+30:1800+30"]

1. d4 {[%emt 0:00:00]} d5 {[%emt 0:00:19]} 2. c4 {[%emt 0:00:00]} c6 {[%emt 0:00:04]} 3. cxd5 {[%emt 0:00:00]} cxd5 {[%emt 0:00:07]} 4. Nc3 {[%emt 0:00:05]} Nf6 {[%emt 0:00:16]} 5. Bf4 {[%emt 0:00:08]} Nc6 {[%emt 0:00:10]} 6. e3 {[%emt 0:00:11]} a6 {[%emt 0:00:05]} 7. Bd3 {[%emt 0:00:25]} Bg4 {[%emt 0:00:20]} 8. Nge2 {[%emt 0:00:09]} e6 {[%emt 0:00:17]} 9. O-O {[%emt 0:00:36]} Bd6 {[%emt 0:02:11]} 10. f3 {[%emt 0:10:18]} Bh5 {[%emt 0:00:40]} 11. Rc1 {[%emt 0:02:31]} O-O {[%emt 0:09:45]} 12. Bg5 {[%emt 0:14:17]} Be7 {[%emt 0:03:03]} 13. f4 {[%emt 0:04:58]} Nd7 {[%emt 0:07:26]} 14. Bxe7 {[%emt 0:00:58]} Qxe7 {[%emt 0:00:10]} 15. Qb3 {[%emt 0:08:55]} Rab8 {[%emt 0:16:37]} 16. Ng3 {[%emt 0:02:30]} Nf6 {[%emt 0:16:28]} 17. f5 {[%emt 0:08:40]} Bg4 {[%emt 0:03:17]} 18. Rce1 {[%emt 0:01:28]} Rfd8 {[%emt 0:10:40]} 19. fxe6 {[%emt 0:01:20]} fxe6 {[%emt 0:00:42]} 20. Rf4 {[%emt 0:06:11]} g6 {[%emt 0:08:40]} 21. Rff1 {[%emt 0:09:57]} Bf5 {[%emt 0:01:26]} 22. Be2 {[%emt 0:02:12]} b5 {[%emt 0:01:42]} 23. Qd1 {[%emt 0:04:17]} Na5 {[%emt 0:03:09]} 24. b3 {[%emt 0:00:50]} Rbc8 {[%emt 0:00:23]} 25. Nxf5 {[%emt 0:04:35]} exf5 {[%emt 0:00:34]} 26. Qd3 {[%emt 0:00:22]} Rc6 {[%emt 0:07:27]} 27. Bf3 {[%emt 0:00:42]} Ne4 {[%emt 0:02:12]} 28. Bxe4 {[%emt 0:03:15]} dxe4 {[%emt 0:01:02]} 29. Qd2 {[%emt 0:00:25]} Qb4 {[%emt 0:01:47]} 30. Nxe4 {[%emt 0:03:47]} Qxd2 {[%emt 0:00:01]} 31. Nxd2 {[%emt 0:00:05]} Rc2 {[%emt 0:00:08]} 32. Nf3 {[%emt 0:00:52]} Rxa2 {[%emt 0:00:05]} 33. Ra1 {[%emt 0:01:13]} Rxa1 {[%emt 0:00:32]} 34. Rxa1 {[%emt 0:00:05]} Nxb3 {[%emt 0:00:05]} 35. Rxa6 {[%emt 0:00:12]} f4 {[%emt 0:01:13]} 36. Ra3 {[%emt 0:02:33]} Nc1 {[%emt 0:00:13]} 37. Ra1 {[%emt 0:03:27]} Ne2+ {[%emt 0:02:51]} 38. Kf2 {[%emt 0:00:24]} Nc3 {[%emt 0:00:06]} 39. exf4 {[%emt 0:02:08]} b4 {[%emt 0:00:19]} 40. Rc1 {[%emt 0:03:05]} Rc8 {[%emt 0:01:55]} 41. Kf1 {[%emt 0:05:03]} Rc4 {[%emt 0:06:38]} 42. Ke1 {[%emt 0:05:20]} b3 {[%emt 0:02:43]} 43. Nd2 {[%emt 0:01:02]} b2 {[%emt 0:00:42]} 44. Rc2 {[%emt 0:01:21]} Rxd4 {[%emt 0:00:44]} 1/2-1/2

[Event "23rd Hoogeveen Open 2019"]
[Site "Hoogeveen"]
[Date "2019.10.25"]
[Round "8.16"]
[White "De Boer, Eelke"]
[Black "Adocchio, Giampiero"]
[Result "1-0"]
[ECO "C18"]
[WhiteElo "2323"]
[BlackElo "2184"]
[Annotator "NA"]
[PlyCount "105"]
[EventDate "2019.10.19"]
[EventType "swiss"]
[EventCountry "NED"]
[SourceTitle "playchess.com"]
[Source "ChessBase"]
[SourceQuality "1"]
[TimeControl "40/5400+30:1800+30"]

1. e4 {[%emt 0:00:00]} e6 {[%emt 0:00:00]} 2. d4 {[%emt 0:00:00]} d5 {[%emt 0:00:00]} 3. Nc3 {[%emt 0:00:00]} Bb4 {[%emt 0:00:07]} 4. e5 {[%emt 0:00:00]} c5 {[%emt 0:00:03]} 5. a3 {[%emt 0:00:00]} Bxc3+ {[%emt 0:00:04]} 6. bxc3 {[%emt 0:00:00]} Ne7 {[%emt 0:00:07]} 7. Qg4 {[%emt 0:00:05]} Qc7 {[%emt 0:00:18]} 8. Bd3 {[%emt 0:05:16]} c4 {[%emt 0:00:04]} 9. Be2 {[%emt 0:02:57]} Nf5 {[%emt 0:00:06]} 10. h4 {[%emt 0:02:19]} Nc6 {[%emt 0:01:32]} 11. h5 {[%emt 0:01:22]} h6 {[%emt 0:01:29]} 12. Qf4 {[%emt 0:09:58]} Qa5 {[%emt 0:05:51]} 13. Bd2 {[%emt 0:00:54]} Qa4 {[%emt 0:00:55]} 14. Bd1 {[%emt 0:01:36]} Bd7 {[%emt 0:00:36]} 15. g4 {[%emt 0:01:25]} Nfe7 {[%emt 0:00:05]} 16. Nf3 {[%emt 0:00:52]} Rf8 {[%emt 0:11:55]} 17. Qg3 {[%emt 0:02:46]} O-O-O {[%emt 0:00:22]} 18. Nh4 {[%emt 0:00:23]} f6 {[%emt 0:03:55]} 19. f4 {[%emt 0:00:12]} fxe5 {[%emt 0:02:04]} 20. fxe5 {[%emt 0:00:11]} Qb5 {[%emt 0:03:52]} 21. Bc1 {[%emt 0:05:19]} Qa5 {[%emt 0:00:46]} 22. Qe3 {[%emt 0:03:08]} Nxd4 {[%emt 0:01:32]} 23. Qxd4 {[%emt 0:00:10]} Nc6 {[%emt 0:00:04]} 24. Qd2 {[%emt 0:05:08]} Nxe5 {[%emt 0:01:27]} 25. Rh3 {[%emt 0:01:13]} Rf6 {[%emt 0:03:08]} 26. Be2 {[%emt 0:10:31]} Rdf8 {[%emt 0:10:09]} 27. Qe3 {[%emt 0:02:43]} Nd3+ {[%emt 0:05:52]} 28. cxd3 {[%emt 0:05:34]} Qxc3+ {[%emt 0:00:07]} 29. Qd2 {[%emt 0:00:26]} Qxa1 {[%emt 0:00:23]} 30. Qb2 {[%emt 0:03:49]} Qxb2 {[%emt 0:00:15]} 31. Bxb2 {[%emt 0:00:06]} e5 {[%emt 0:08:53]} 32. Bxe5 {[%emt 0:02:18]} Re6 {[%emt 0:00:49]} 33. Ng6 {[%emt 0:00:59]} Rfe8 {[%emt 0:01:36]} 34. d4 {[%emt 0:01:18]} Rb6 {[%emt 0:00:54]} 35. Nf4 {[%emt 0:04:19]} Rf8 {[%emt 0:09:29]} 36. Rc3 {[%emt 0:06:19]} Rb1+ {[%emt 0:04:26]} 37. Kd2 {[%emt 0:00:25]} Bc6 {[%emt 0:03:42]} 38. Ne6 {[%emt 0:10:54]} Rf2 {[%emt 0:02:08]} 39. Ke3 {[%emt 0:00:07]} Rg2 {[%emt 0:00:39]} 40. Nf4 {[%emt 0:07:01]} Rg3+ {[%emt 0:02:07]} 41. Bf3 {[%emt 0:31:33]} Rf1 {[%emt 0:37:33]} 42. Ke2 {[%emt 0:00:25]} Rgg1 {[%emt 0:00:04]} 43. Nh3 {[%emt 0:00:00]} Rc1 {[%emt 0:00:00]} 44. Nxg1 {[%emt 0:00:00]} Rxc3 {[%emt 0:00:00]} 45. Bxg7 {[%emt 0:00:00]} Rxa3 {[%emt 0:00:00]} 46. Bxh6 {[%emt 0:00:00]} c3 {[%emt 0:00:00]} 47. Kf2 {[%emt 0:00:00]} b5 {[%emt 0:00:00]} 48. Bc1 {[%emt 0:00:00]} Ra2+ {[%emt 0:00:00]} 49. Ne2 {[%emt 0:00:00]} b4 {[%emt 0:00:00]} 50. h6 {[%emt 0:00:00]} b3 {[%emt 0:00:00]} 51. h7 {[%emt 0:00:00]} b2 {[%emt 0:00:00]} 52. h8=Q+ {[%emt 0:00:00]} Kb7 {[%emt 0:00:00]} 53. Qh7+ {[%emt 0:00:00]} 1-0

[Event "23rd Hoogeveen Open 2019"]
[Site "Hoogeveen"]
[Date "2019.10.25"]
[Round "8.17"]
[White "Wiersma, Eelke"]
[Black "Pekin, Tolgay"]
[Result "1-0"]
[ECO "B51"]
[WhiteElo "2321"]
[BlackElo "2083"]
[Annotator "NA"]
[PlyCount "73"]
[EventDate "2019.10.19"]
[EventType "swiss"]
[EventCountry "NED"]
[SourceTitle "playchess.com"]
[Source "ChessBase"]
[SourceQuality "1"]
[TimeControl "40/5400+30:1800+30"]

1. e4 {[%emt 0:00:00]} c5 {[%emt 0:00:00]} 2. Nf3 {[%emt 0:00:00]} Nc6 {[%emt 0:00:00]} 3. Bb5 {[%emt 0:00:00]} d6 {[%emt 0:00:00]} 4. O-O {[%emt 0:00:09]} Bd7 {[%emt 0:00:08]} 5. Re1 {[%emt 0:00:13]} Nf6 {[%emt 0:00:14]} 6. c3 {[%emt 0:00:12]} a6 {[%emt 0:00:09]} 7. Bf1 {[%emt 0:00:13]} Bg4 {[%emt 0:00:09]} 8. d4 {[%emt 0:00:49]} cxd4 {[%emt 0:00:22]} 9. cxd4 {[%emt 0:00:12]} e5 {[%emt 0:00:10]} 10. Be3 {[%emt 0:00:32]} exd4 {[%emt 0:21:29]} 11. Bxd4 {[%emt 0:01:31]} Be7 {[%emt 0:05:39]} 12. Nc3 {[%emt 0:04:33]} O-O {[%emt 0:03:03]} 13. Be3 {[%emt 0:03:09]} Re8 {[%emt 0:03:36]} 14. h3 {[%emt 0:04:25]} Bh5 {[%emt 0:02:23]} 15. g4 {[%emt 0:04:37]} Bg6 {[%emt 0:02:59]} 16. Nh4 {[%emt 0:00:23]} Bf8 {[%emt 0:07:06]} 17. Nxg6 {[%emt 0:03:09]} hxg6 {[%emt 0:00:25]} 18. Bg2 {[%emt 0:02:00]} Qa5 {[%emt 0:03:55]} 19. g5 {[%emt 0:05:22]} Nd7 {[%emt 0:04:59]} 20. Nd5 {[%emt 0:01:35]} Rac8 {[%emt 0:07:13]} 21. h4 {[%emt 0:11:34]} Ne7 {[%emt 0:02:51]} 22. b4 {[%emt 0:16:01]} Qd8 {[%emt 0:00:15]} 23. Nxe7+ {[%emt 0:02:40]} Bxe7 {[%emt 0:05:22]} 24. Qd5 {[%emt 0:00:32]} b5 {[%emt 0:05:10]} 25. Qb7 {[%emt 0:01:09]} Nb8 {[%emt 0:02:46]} 26. a4 {[%emt 0:01:33]} Qc7 {[%emt 0:04:55]} 27. Qxc7 {[%emt 0:02:52]} Rxc7 {[%emt 0:00:04]} 28. axb5 {[%emt 0:00:57]} axb5 {[%emt 0:00:05]} 29. Ra5 {[%emt 0:02:26]} Nd7 {[%emt 0:04:59]} 30. Rxb5 {[%emt 0:00:29]} Ne5 {[%emt 0:04:36]} 31. Rc1 {[%emt 0:01:25]} Rxc1+ {[%emt 0:00:45]} 32. Bxc1 {[%emt 0:00:06]} Rc8 {[%emt 0:00:10]} 33. Be3 {[%emt 0:00:41]} f5 {[%emt 0:01:38]} 34. exf5 {[%emt 0:05:18]} gxf5 {[%emt 0:00:06]} 35. Bd5+ {[%emt 0:01:53]} Kh8 {[%emt 0:01:22]} 36. Rb7 {[%emt 0:00:55]} Bd8 {[%emt 0:01:30]} 37. b5 {[%emt 0:01:05]} 1-0

[Event "23rd Hoogeveen Open 2019"]
[Site "Hoogeveen"]
[Date "2019.10.25"]
[Round "8.18"]
[White "Mueer, Sebastian"]
[Black "Hoffman, Ron"]
[Result "1-0"]
[ECO "A80"]
[WhiteElo "2194"]
[BlackElo "1991"]
[Annotator "NA"]
[PlyCount "81"]
[EventDate "2019.10.19"]
[EventType "swiss"]
[EventCountry "NED"]
[SourceTitle "playchess.com"]
[Source "ChessBase"]
[SourceQuality "1"]
[TimeControl "40/5400+30:1800+30"]

1. d4 {[%emt 0:02:16]} f5 {[%emt 0:00:00]} 2. Bf4 {[%emt 0:00:03]} Nf6 {[%emt 0:00:08]} 3. e3 {[%emt 0:00:07]} d6 {[%emt 0:00:15]} 4. Nc3 {[%emt 0:00:45]} e6 {[%emt 0:00:15]} 5. Bd3 {[%emt 0:02:08]} Nc6 {[%emt 0:00:36]} 6. Nf3 {[%emt 0:05:56]} Nb4 {[%emt 0:00:12]} 7. Be2 {[%emt 0:02:50]} Be7 {[%emt 0:00:25]} 8. h3 {[%emt 0:01:32]} O-O {[%emt 0:05:02]} 9. g4 {[%emt 0:19:03]} Ne4 {[%emt 0:03:26]} 10. a3 {[%emt 0:20:08]} Nxc3 {[%emt 0:04:39]} 11. bxc3 {[%emt 0:00:09]} Nd5 {[%emt 0:00:13]} 12. Qd3 {[%emt 0:01:38]} Nxf4 {[%emt 0:08:42]} 13. exf4 {[%emt 0:01:31]} c6 {[%emt 0:07:20]} 14. c4 {[%emt 0:02:48]} Qa5+ {[%emt 0:04:00]} 15. c3 {[%emt 0:00:55]} Bd7 {[%emt 0:11:13]} 16. Qe3 {[%emt 0:06:08]} Rae8 {[%emt 0:03:21]} 17. g5 {[%emt 0:00:32]} b6 {[%emt 0:04:53]} 18. O-O {[%emt 0:02:20]} c5 {[%emt 0:02:43]} 19. Rfd1 {[%emt 0:00:52]} Kh8 {[%emt 0:01:51]} 20. h4 {[%emt 0:00:39]} Qa6 {[%emt 0:08:29]} 21. h5 {[%emt 0:02:51]} Qb7 {[%emt 0:00:55]} 22. Nh4 {[%emt 0:04:58]} Qe4 {[%emt 0:10:28]} 23. Ng6+ {[%emt 0:04:26]} Kg8 {[%emt 0:21:51]} 24. Nxf8 {[%emt 0:01:11]} Rxf8 {[%emt 0:00:24]} 25. Bf3 {[%emt 0:00:54]} Qc2 {[%emt 0:00:36]} 26. Rac1 {[%emt 0:09:51]} Qa4 {[%emt 0:00:05]} 27. d5 {[%emt 0:01:40]} Qxc4 {[%emt 0:00:53]} 28. dxe6 {[%emt 0:00:02]} Ba4 {[%emt 0:00:23]} 29. Rd2 {[%emt 0:02:11]} Qa6 {[%emt 0:00:15]} 30. Re1 {[%emt 0:02:15]} Qc8 {[%emt 0:00:44]} 31. c4 {[%emt 0:01:24]} Qa6 {[%emt 0:00:29]} 32. Rxd6 {[%emt 0:01:13]} Bxd6 {[%emt 0:00:23]} 33. e7 {[%emt 0:00:00]} Re8 {[%emt 0:00:00]} 34. Qe6+ {[%emt 0:00:38]} Kh8 {[%emt 0:00:01]} 35. Qxd6 {[%emt 0:00:13]} Qxc4 {[%emt 0:01:00]} 36. Bc6 {[%emt 0:01:05]} Bxc6 {[%emt 0:00:40]} 37. Qxc6 {[%emt 0:00:01]} Qf7 {[%emt 0:00:02]} 38. g6 {[%emt 0:00:28]} Qg8 {[%emt 0:00:32]} 39. Qd7 {[%emt 0:00:51]} c4 {[%emt 0:01:27]} 40. Rd1 {[%emt 0:00:36]} c3 {[%emt 0:00:34]} 41. Qxe8 {[%emt 0:00:58]} 1-0

[Event "23rd Hoogeveen Open 2019"]
[Site "Hoogeveen"]
[Date "2019.10.25"]
[Round "8.19"]
[White "Vogel, Jaap"]
[Black "Advait, Bagri"]
[Result "1/2-1/2"]
[ECO "D02"]
[WhiteElo "2123"]
[BlackElo "2231"]
[Annotator "NA"]
[PlyCount "54"]
[EventDate "2019.10.19"]
[EventType "swiss"]
[EventCountry "NED"]
[SourceTitle "playchess.com"]
[Source "ChessBase"]
[SourceQuality "1"]
[TimeControl "40/5400+30:1800+30"]

1. d4 {[%emt 0:00:00]} d5 {[%emt 0:01:51]} 2. Bf4 {[%emt 0:00:07]} Nf6 {[%emt 0:00:18]} 3. e3 {[%emt 0:00:12]} e6 {[%emt 0:00:57]} 4. Nf3 {[%emt 0:00:44]} Bd6 {[%emt 0:01:44]} 5. Bg3 {[%emt 0:00:18]} c5 {[%emt 0:00:52]} 6. c3 {[%emt 0:00:28]} O-O {[%emt 0:01:17]} 7. Nbd2 {[%emt 0:00:47]} Nc6 {[%emt 0:02:23]} 8. Bd3 {[%emt 0:02:05]} b6 {[%emt 0:00:55]} 9. Qe2 {[%emt 0:05:24]} Bb7 {[%emt 0:09:40]} 10. Rd1 {[%emt 0:01:26]} Qe7 {[%emt 0:04:15]} 11. e4 {[%emt 0:12:42]} dxe4 {[%emt 0:02:15]} 12. Nxe4 {[%emt 0:04:51]} Nxe4 {[%emt 0:00:48]} 13. Bxe4 {[%emt 0:01:45]} cxd4 {[%emt 0:12:22]} 14. Bxd6 {[%emt 0:12:03]} Qxd6 {[%emt 0:00:15]} 15. Nxd4 {[%emt 0:00:26]} Nxd4 {[%emt 0:08:13]} 16. Rxd4 {[%emt 0:01:46]} Qe7 {[%emt 0:01:32]} 17. Bxb7 {[%emt 0:02:40]} Qxb7 {[%emt 0:00:13]} 18. O-O {[%emt 0:00:07]} Rfd8 {[%emt 0:03:49]} 19. Rfd1 {[%emt 0:00:36]} Qc7 {[%emt 0:01:40]} 20. Qd3 {[%emt 0:03:38]} Rxd4 {[%emt 0:00:51]} 21. Qxd4 {[%emt 0:00:05]} h6 {[%emt 0:00:47]} 22. h3 {[%emt 0:02:31]} Qc6 {[%emt 0:09:17]} 23. Rd3 {[%emt 0:04:04]} Qb5 {[%emt 0:06:00]} 24. b3 {[%emt 0:11:36]} Rc8 {[%emt 0:03:19]} 25. Rg3 {[%emt 0:04:30]} g6 {[%emt 0:01:03]} 26. c4 {[%emt 0:04:35]} Qc6 {[%emt 0:05:44]} 27. h4 {[%emt 0:05:28]} Qc5 {[%emt 0:01:51]} 1/2-1/2

[Event "23rd Hoogeveen Open 2019"]
[Site "Hoogeveen"]
[Date "2019.10.25"]
[Round "8.20"]
[White "Stavast, Dick"]
[Black "Djukic, Sandra"]
[Result "0-1"]
[ECO "A13"]
[WhiteElo "2068"]
[BlackElo "2179"]
[Annotator "NA"]
[PlyCount "72"]
[EventDate "2019.10.19"]
[EventType "swiss"]
[EventCountry "NED"]
[SourceTitle "playchess.com"]
[Source "ChessBase"]
[SourceQuality "1"]
[TimeControl "40/5400+30:1800+30"]

1. Nf3 {[%emt 0:00:00]} d5 {[%emt 0:00:00]} 2. e3 {[%emt 0:00:00]} Nf6 {[%emt 0:02:08]} 3. b3 {[%emt 0:00:42]} e6 {[%emt 0:01:22]} 4. Bb2 {[%emt 0:00:48]} b6 {[%emt 0:01:38]} 5. c4 {[%emt 0:07:16]} Bb7 {[%emt 0:17:52]} 6. Nc3 {[%emt 0:03:47]} a6 {[%emt 0:03:43]} 7. Qc2 {[%emt 0:03:32]} dxc4 {[%emt 0:12:24]} 8. bxc4 {[%emt 0:00:24]} c5 {[%emt 0:07:41]} 9. Be2 {[%emt 0:09:23]} Qc7 {[%emt 0:04:06]} 10. O-O-O {[%emt 0:12:54]} Nbd7 {[%emt 0:00:57]} 11. Kb1 {[%emt 0:02:06]} h6 {[%emt 0:20:02]} 12. h3 {[%emt 0:06:18]} Bd6 {[%emt 0:02:25]} 13. Rhe1 {[%emt 0:02:26]} O-O-O {[%emt 0:11:33]} 14. a3 {[%emt 0:07:41]} Kb8 {[%emt 0:00:07]} 15. d4 {[%emt 0:10:24]} Rhe8 {[%emt 0:04:06]} 16. d5 {[%emt 0:02:07]} exd5 {[%emt 0:00:27]} 17. cxd5 {[%emt 0:00:25]} Ne5 {[%emt 0:04:44]} 18. e4 {[%emt 0:08:31]} Nxf3 {[%emt 0:00:07]} 19. gxf3 {[%emt 0:01:04]} Nh5 {[%emt 0:03:29]} 20. Qa4 {[%emt 0:02:38]} b5 {[%emt 0:00:17]} 21. Bxb5 {[%emt 0:00:38]} axb5 {[%emt 0:00:03]} 22. Nxb5 {[%emt 0:00:05]} Qb6 {[%emt 0:00:04]} 23. e5 {[%emt 0:03:31]} Bf8 {[%emt 0:00:02]} 24. e6 {[%emt 0:02:26]} f6 {[%emt 0:00:04]} 25. d6 {[%emt 0:01:15]} Bc6 {[%emt 0:02:19]} 26. e7 {[%emt 0:03:57]} Bxe7 {[%emt 0:00:46]} 27. dxe7 {[%emt 0:02:47]} Rxd1+ {[%emt 0:00:25]} 28. Qxd1 {[%emt 0:02:58]} Qxb5 {[%emt 0:00:15]} 29. f4 {[%emt 0:01:30]} c4 {[%emt 0:00:09]} 30. Qd6+ {[%emt 0:02:21]} Kb7 {[%emt 0:00:17]} 31. Ka1 {[%emt 0:00:14]} Qd5 {[%emt 0:00:34]} 32. Qb4+ {[%emt 0:00:20]} Kc7 {[%emt 0:00:40]} 33. Bc3 {[%emt 0:01:19]} Nxf4 {[%emt 0:00:19]} 34. Rb1 {[%emt 0:00:19]} Nd3 {[%emt 0:00:43]} 35. Qb6+ {[%emt 0:00:15]} Kd7 {[%emt 0:00:02]} 36. Qa7+ {[%emt 0:00:21]} Ke6 {[%emt 0:00:04]} 0-1

[Event "23rd Hoogeveen Open 2019"]
[Site "Hoogeveen"]
[Date "2019.10.25"]
[Round "8.21"]
[White "Van Foreest, Machteld"]
[Black "Van der Hagen, Loek"]
[Result "1-0"]
[ECO "C06"]
[WhiteElo "2142"]
[BlackElo "1983"]
[Annotator "NA"]
[PlyCount "57"]
[EventDate "2019.10.19"]
[EventType "swiss"]
[EventCountry "NED"]
[SourceTitle "playchess.com"]
[Source "ChessBase"]
[SourceQuality "1"]
[TimeControl "40/5400+30:1800+30"]

1. e4 {[%emt 0:00:00]} e6 {[%emt 0:00:00]} 2. d4 {[%emt 0:00:10]} d5 {[%emt 0:00:00]} 3. Nd2 {[%emt 0:00:04]} Nf6 {[%emt 0:00:00]} 4. e5 {[%emt 0:00:04]} Nfd7 {[%emt 0:00:03]} 5. c3 {[%emt 0:00:02]} c5 {[%emt 0:00:20]} 6. Bd3 {[%emt 0:00:04]} Nc6 {[%emt 0:00:19]} 7. Ne2 {[%emt 0:00:05]} cxd4 {[%emt 0:00:28]} 8. cxd4 {[%emt 0:00:05]} f6 {[%emt 0:00:17]} 9. exf6 {[%emt 0:00:02]} Nxf6 {[%emt 0:00:07]} 10. Nf3 {[%emt 0:00:12]} Bd6 {[%emt 0:00:07]} 11. O-O {[%emt 0:00:06]} Qc7 {[%emt 0:00:20]} 12. h3 {[%emt 0:02:26]} O-O {[%emt 0:00:10]} 13. Be3 {[%emt 0:00:40]} Bd7 {[%emt 0:02:12]} 14. Re1 {[%emt 0:00:55]} Rae8 {[%emt 0:01:05]} 15. Rc1 {[%emt 0:03:36]} Qb8 {[%emt 0:00:14]} 16. Nc3 {[%emt 0:12:21]} a6 {[%emt 0:12:33]} 17. a3 {[%emt 0:11:18]} Kh8 {[%emt 0:02:47]} 18. Bb1 {[%emt 0:07:59]} Bf4 {[%emt 0:36:46]} 19. Qd3 {[%emt 0:18:20]} e5 {[%emt 0:03:41]} 20. Bxf4 {[%emt 0:01:05]} exf4 {[%emt 0:02:00]} 21. Nxd5 {[%emt 0:02:00]} g6 {[%emt 0:08:40]} 22. Nxf6 {[%emt 0:00:56]} Rxf6 {[%emt 0:00:19]} 23. Rxe8+ {[%emt 0:06:25]} Qxe8 {[%emt 0:00:16]} 24. Re1 {[%emt 0:03:28]} Re6 {[%emt 0:01:05]} 25. Rxe6 {[%emt 0:00:25]} Bxe6 {[%emt 0:03:11]} 26. d5 {[%emt 0:01:09]} Bxd5 {[%emt 0:02:22]} 27. Qxd5 {[%emt 0:00:06]} Qe2 {[%emt 0:00:08]} 28. Ba2 {[%emt 0:00:19]} Ne7 {[%emt 0:00:51]} 29. Qd4+ {[%emt 0:00:05]} 1-0

[Event "23rd Hoogeveen Open 2019"]
[Site "Hoogeveen"]
[Date "2019.10.25"]
[Round "8.22"]
[White "Barthel, Ansgar"]
[Black "Van der Velde, Henk"]
[Result "1/2-1/2"]
[ECO "B19"]
[WhiteElo "2037"]
[BlackElo "2118"]
[Annotator "NA"]
[PlyCount "80"]
[EventDate "2019.10.19"]
[EventType "swiss"]
[EventCountry "NED"]
[SourceTitle "playchess.com"]
[Source "ChessBase"]
[SourceQuality "1"]
[TimeControl "40/5400+30:1800+30"]

1. e4 {[%emt 0:00:00]} c6 {[%emt 0:00:00]} 2. d4 {[%emt 0:00:00]} d5 {[%emt 0:00:00]} 3. Nc3 {[%emt 0:00:00]} dxe4 {[%emt 0:00:03]} 4. Nxe4 {[%emt 0:00:00]} Bf5 {[%emt 0:00:17]} 5. Ng3 {[%emt 0:00:03]} Bg6 {[%emt 0:00:13]} 6. h4 {[%emt 0:00:07]} h6 {[%emt 0:00:13]} 7. Nf3 {[%emt 0:00:05]} e6 {[%emt 0:00:15]} 8. h5 {[%emt 0:03:44]} Bh7 {[%emt 0:00:14]} 9. Bd3 {[%emt 0:00:07]} Bxd3 {[%emt 0:00:15]} 10. Qxd3 {[%emt 0:00:04]} Nf6 {[%emt 0:00:19]} 11. Bd2 {[%emt 0:00:14]} c5 {[%emt 0:00:33]} 12. O-O-O {[%emt 0:05:10]} Nc6 {[%emt 0:00:55]} 13. Be1 {[%emt 0:18:23]} cxd4 {[%emt 0:24:32]} 14. Nxd4 {[%emt 0:00:17]} Nxd4 {[%emt 0:01:23]} 15. Qxd4 {[%emt 0:00:05]} Qxd4 {[%emt 0:00:13]} 16. Rxd4 {[%emt 0:00:04]} Bc5 {[%emt 0:00:30]} 17. Rd3 {[%emt 0:05:04]} Ke7 {[%emt 0:07:25]} 18. Rh4 {[%emt 0:01:53]} Rhd8 {[%emt 0:02:56]} 19. Rb3 {[%emt 0:45:05]} b6 {[%emt 0:02:38]} 20. Bb4 {[%emt 0:02:58]} Rac8 {[%emt 0:20:43]} 21. Ne4 {[%emt 0:00:18]} Nxe4 {[%emt 0:03:17]} 22. Rxe4 {[%emt 0:00:09]} Rd5 {[%emt 0:03:53]} 23. Rh3 {[%emt 0:05:14]} Bxb4 {[%emt 0:02:51]} 24. Rxb4 {[%emt 0:00:04]} Rcd8 {[%emt 0:00:10]} 25. b3 {[%emt 0:00:12]} Rd2 {[%emt 0:03:05]} 26. Rf3 {[%emt 0:01:38]} R8d5 {[%emt 0:04:50]} 27. Rc4 {[%emt 0:01:32]} Rd7 {[%emt 0:03:12]} 28. Rg4 {[%emt 0:01:32]} Kf8 {[%emt 0:00:51]} 29. Rgf4 {[%emt 0:00:55]} Re2 {[%emt 0:01:06]} 30. g4 {[%emt 0:01:31]} f6 {[%emt 0:03:19]} 31. Rc3 {[%emt 0:01:26]} e5 {[%emt 0:00:04]} 32. Rf5 {[%emt 0:00:03]} Kf7 {[%emt 0:00:55]} 33. Rff3 {[%emt 0:01:08]} Re4 {[%emt 0:00:30]} 34. Rfd3 {[%emt 0:01:09]} Ke7 {[%emt 0:02:08]} 35. f3 {[%emt 0:00:34]} Rf4 {[%emt 0:00:43]} 36. Rxd7+ {[%emt 0:00:50]} Kxd7 {[%emt 0:00:01]} 37. Rd3+ {[%emt 0:00:58]} Kc7 {[%emt 0:01:12]} 38. Rc3+ {[%emt 0:00:09]} Kd7 {[%emt 0:00:35]} 39. Rd3+ {[%emt 0:00:04]} Kc7 {[%emt 0:01:15]} 40. Rc3+ {[%emt 0:00:05]} Kd7 {[%emt 0:00:06]} 1/2-1/2

[Event "23rd Hoogeveen Open 2019"]
[Site "Hoogeveen"]
[Date "2019.10.25"]
[Round "8.23"]
[White "Albers, Sasa"]
[Black "Nicolai, Amir"]
[Result "1/2-1/2"]
[ECO "B22"]
[WhiteElo "1975"]
[BlackElo "2117"]
[Annotator "NA"]
[PlyCount "75"]
[EventDate "2019.10.19"]
[EventType "swiss"]
[EventCountry "NED"]
[SourceTitle "playchess.com"]
[Source "ChessBase"]
[SourceQuality "1"]
[TimeControl "40/5400+30:1800+30"]

1. e4 {[%emt 0:00:00]} c5 {[%emt 0:00:00]} 2. Nf3 {[%emt 0:00:00]} Nc6 {[%emt 0:00:00]} 3. c3 {[%emt 0:00:00]} Nf6 {[%emt 0:00:00]} 4. e5 {[%emt 0:00:00]} Nd5 {[%emt 0:00:00]} 5. Bc4 {[%emt 0:00:00]} Nb6 {[%emt 0:00:00]} 6. Bb3 {[%emt 0:00:02]} c4 {[%emt 0:00:01]} 7. Bc2 {[%emt 0:00:08]} d5 {[%emt 0:00:03]} 8. exd6 {[%emt 0:00:11]} Qxd6 {[%emt 0:00:06]} 9. O-O {[%emt 0:01:31]} Bg4 {[%emt 0:00:06]} 10. Qe2 {[%emt 0:00:28]} O-O-O {[%emt 0:10:32]} 11. b3 {[%emt 0:14:54]} Qf6 {[%emt 0:22:23]} 12. bxc4 {[%emt 0:01:46]} Bxf3 {[%emt 0:00:15]} 13. Qxf3 {[%emt 0:00:06]} Qxf3 {[%emt 0:00:05]} 14. gxf3 {[%emt 0:00:06]} Nxc4 {[%emt 0:00:24]} 15. f4 {[%emt 0:02:42]} g6 {[%emt 0:03:55]} 16. d4 {[%emt 0:02:00]} e6 {[%emt 0:01:31]} 17. Nd2 {[%emt 0:04:37]} Nxd2 {[%emt 0:01:56]} 18. Bxd2 {[%emt 0:00:22]} Bh6 {[%emt 0:01:22]} 19. Be3 {[%emt 0:01:17]} Rd5 {[%emt 0:07:34]} 20. Rab1 {[%emt 0:13:41]} Kc7 {[%emt 0:07:27]} 21. Rb2 {[%emt 0:10:14]} Rb8 {[%emt 0:05:03]} 22. Be4 {[%emt 0:08:41]} Ra5 {[%emt 0:02:13]} 23. Rfb1 {[%emt 0:02:09]} Ra4 {[%emt 0:04:57]} 24. Kg2 {[%emt 0:14:18]} b6 {[%emt 0:02:56]} 25. Rc1 {[%emt 0:07:47]} Na5 {[%emt 0:01:18]} 26. Bd3 {[%emt 0:00:34]} Nc4 {[%emt 0:02:30]} 27. Re2 {[%emt 0:02:58]} b5 {[%emt 0:02:19]} 28. Rb1 {[%emt 0:00:03]} Kd6 {[%emt 0:07:10]} 29. h4 {[%emt 0:04:10]} Rb6 {[%emt 0:06:20]} 30. h5 {[%emt 0:00:45]} Ra3 {[%emt 0:01:36]} 31. hxg6 {[%emt 0:00:19]} hxg6 {[%emt 0:00:32]} 32. Rb3 {[%emt 0:00:41]} Ra4 {[%emt 0:03:46]} 33. Rb1 {[%emt 0:01:03]} Bf8 {[%emt 0:02:35]} 34. Kf3 {[%emt 0:05:05]} Ra3 {[%emt 0:03:12]} 35. Rb3 {[%emt 0:00:22]} Ra4 {[%emt 0:00:28]} 36. Rb1 {[%emt 0:00:11]} Ra3 {[%emt 0:00:45]} 37. Rb3 {[%emt 0:01:59]} Ra4 {[%emt 0:00:24]} 38. Ke4 {[%emt 0:00:05] Ke5+} 1/2-1/2